bitfinex-derivatives/quotes_ETHF0:USTF0_20241004
["timestamp","ask_amount","ask_price","bid_price","bid_amount"]
[1728085277602,0.8305,2416.5,2416.4,0.8331]
[1728085282517,0.8305,2416.5,2416.4,0.4272]
[1728085288506,4.0383,2416.5,2416.4,0.4272]
[1728085288710,3.6245,2416.5,2416.4,0.4272]
[1728085288910,3.2078,2416.5,2416.4,2.03101]
[1728085290117,3.6216,2416.5,2416.4,1.6172]
[1728085290423,0.4138,2416.5,2416.4,1.6172]
[1728085292516,0.4138,2416.5,2416.4,2.0404]
[1728085296421,0.4138,2416.5,2416.4,0.8504]
[1728085296623,0.41383,2416.3,2416.2,0.4251]
[1728085299420,0.41383,2416.3,2416.2,0.95944279]
[1728085301620,0.41383,2416.3,2416.2,0.4251]
[1728085301825,0.41383,2416.3,2416.2,0.95948752]
[1728085302227,0.41383,2416.3,2416.2,0.95948606]
[1728085308231,0.41383,2416.3,2416.2,0.4251]
[1728085308631,0.41383,2416.3,2416.2,0.95954607]
[1728085311336,0.41383,2416.3,2416.2,2.14954607]
[1728085311742,0.41383,2416.3,2416.2,1.6151]
[1728085311935,0.41383,2416.3,2416.2,2.14960548]
[1728085312239,0.41382,2416.4,2416.2,2.02893]
[1728085312441,0.41382,2416.4,2416.3,0.4254]
[1728085312740,0.41382,2416.4,2416.3,1.34760064]
[1728085315245,0.41382,2416.4,2416.3,0.8131]
[1728085315440,0.41382,2416.4,2416.3,1.34771109]
[1728085316546,0.41382,2416.4,2416.3,0.8131]
[1728085316739,0.41382,2416.4,2416.3,1.3478132]
[1728085317549,0.41382,2416.4,2416.3,1.34785753]
[1728085317744,0.41382,2416.4,2416.3,0.53475753]
[1728085318138,0.41386,2416.1,2416.0,0.8064]
[1728085318344,0.41386,2416.1,2416.0,1.34118653]
[1728085318845,0.41386,2416.1,2416.0,1.34117396]
[1728085321340,0.41386,2416.1,2416.0,1.34114667]
[1728085324950,0.41386,2416.1,2416.0,1.34101887]
[1728085326656,1.60386,2416.1,2416.0,0.8064]
[1728085331650,1.60386,2416.1,2416.0,0.4075]
[1728085339250,0.4139,2415.9,2415.8,0.3953]
[1728085339446,4.3978,2415.9,2415.7,0.8368]
[1728085339653,0.80592,2415.8,2415.7,0.8368]
[1728085341449,5.7212,2415.8,2415.1,1.08696659]
[1728085341754,5.7212,2415.8,2415.3,0.8101]
[1728085341755,0.41398,2415.4,2415.3,0.8101]
[1728085342252,1.19,2415.5,2415.3,0.8101]
[1728085342551,1.60398,2415.5,2415.3,1.2241]
[1728085342751,0.41397,2415.5,2415.3,1.22409]
[1728085347454,4.3978,2415.6,2415.3,1.22409]
[1728085347656,0.41398,2415.5,2415.3,1.22409]
[1728085349357,0.80978,2415.5,2415.3,1.22409]
[1728085350954,0.80978,2415.5,2415.3,0.8101]
[1728085350955,0.41398,2415.4,2415.3,0.8101]
[1728085354662,4.55398,2415.4,2415.3,0.4158]
[1728085356056,0.41398,2415.4,2415.3,0.4158]
[1728085366874,3.62178,2415.4,2415.3,0.4158]
[1728085367571,0.41403,2415.2,2415.0,0.41405]
[1728085368165,0.4037,2415.2,2415.1,0.80544]
[1728085375775,0.4037,2415.2,2415.1,0.3914]
[1728085375977,0.81772,2415.2,2415.1,0.3914]
[1728085385282,0.4037,2415.2,2414.9,0.8357]
[1728085385585,1.60405,2415.0,2414.9,0.8357]
[1728085386385,4.81185,2415.0,2414.9,0.8357]
[1728085389988,1.60405,2415.0,2414.9,0.8357]
[1728085390183,0.41409,2414.8,2414.7,0.418]
[1728085390387,0.41409,2414.8,2414.7,0.8258]
[1728085390388,1.60409,2414.8,2414.7,0.8258]
[1728085393084,5.3316,2414.8,2414.5,0.4224]
[1728085393291,0.41414,2414.5,2414.4,0.8231]
[1728085393596,1.60414,2414.5,2414.4,0.4078]
[1728085393782,1.99074,2414.5,2414.4,0.4078]
[1728085394781,1.19,2414.5,2414.4,0.4078]
[1728085394980,1.19,2414.5,2414.4,0.82196]
[1728085395987,1.19,2414.5,2414.4,0.4078]
[1728085399394,1.60414,2414.5,2414.4,0.4078]
[1728085400601,4.81194,2414.5,2414.4,0.4078]
[1728085403198,4.3978,2414.5,2414.4,0.4078]
[1728085403411,4.81194,2414.5,2414.4,0.4078]
[1728085407792,4.3978,2414.5,2414.4,0.4078]
[1728085408501,4.6877,2414.5,2414.4,0.4078]
[1728085410396,4.3978,2414.5,2414.4,0.4078]
[1728085410598,3.5918,2414.9,2414.4,4.5494]
[1728085410789,1.47986,2414.9,2414.7,0.28987]
[1728085410990,1.47986,2414.9,2414.8,1.2269]
[1728085422409,4.68766,2414.9,2414.8,1.2269]
[1728085443820,4.68766,2414.9,2414.8,0.4114]
[1728085444128,5.08926,2414.9,2414.8,0.4114]
[1728085445228,0.28987,2414.7,2414.5,0.28989]
[1728085445526,0.28987,2414.7,2414.6,0.397]
[1728085446325,0.28987,2414.7,2414.6,0.93150247]
[1728085446516,0.28987,2414.8,2414.6,1.22138247]
[1728085446726,0.28987,2414.8,2414.6,0.68688]
[1728085446923,0.4008,2414.7,2414.6,0.68688]
[1728085449428,0.4008,2414.7,2414.6,1.22146065]
[1728085450224,0.4008,2414.7,2414.6,0.68688]
[1728085450420,0.4008,2414.7,2414.6,1.22155998]
[1728085454334,0.4008,2414.7,2414.6,1.22187472]
[1728085455232,0.4008,2414.7,2414.6,2.07808672]
[1728085456233,0.4008,2414.7,2414.6,2.65342898]
[1728085458229,0.4008,2414.7,2414.6,2.65344154]
[1728085461036,0.69067,2414.7,2414.6,2.25644154]
[1728085461237,0.4008,2414.7,2414.6,2.09338672]
[1728085461424,0.4008,2414.7,2414.6,2.66874103]
[1728085462334,0.4008,2414.7,2414.6,2.09422977]
[1728085462530,1.5908,2414.7,2414.6,2.09422977]
[1728085462736,1.5908,2414.7,2414.6,2.66957069]
[1728085464639,1.5908,2414.7,2414.6,2.09422977]
[1728085464837,1.5908,2414.7,2414.6,2.66955681]
[1728085465441,1.5908,2414.7,2414.6,0.70218]
[1728085465837,1.5908,2414.7,2414.6,2.09415823]
[1728085466639,1.5908,2414.7,2414.6,2.66948277]
[1728085467142,1.5908,2414.7,2414.6,2.09415823]
[1728085469139,1.5908,2414.7,2414.6,2.66947068]
[1728085469340,1.5908,2414.7,2414.6,2.09415071]
[1728085472145,1.5908,2414.7,2414.6,1.80427071]
[1728085472348,1.88067,2414.7,2414.6,0.53537335]
[1728085472569,2.24977,2414.7,2414.6,0.53537335]
[1728085472850,0.2899,2414.5,2414.4,0.8167]
[1728085473049,1.4799,2414.5,2414.4,1.39204722]
[1728085473247,1.4799,2414.5,2414.4,2.20874342]
[1728085473450,1.19,2414.5,2414.4,2.49865342]
[1728085473647,1.19,2414.5,2414.4,2.49848845]
[1728085473843,1.19,2414.5,2414.4,2.4984912]
[1728085474252,1.19,2414.5,2414.4,1.64201131]
[1728085474951,1.19,2414.5,2414.4,2.49817009]
[1728085475153,1.19,2414.6,2414.4,1.35191693]
[1728085475455,1.19,2414.6,2414.5,1.24411693]
[1728085476347,1.47988,2414.6,2414.5,0.419]
[1728085476547,1.47988,2414.6,2414.5,0.95411234]
[1728085479348,1.19,2414.6,2414.5,0.95411234]
[1728085479549,1.19,2414.6,2414.5,1.24401234]
[1728085479759,1.47988,2414.6,2414.5,1.24401234]
[1728085481945,1.47988,2414.6,2414.5,0.7089]
[1728085482150,1.47988,2414.6,2414.5,1.24386416]
[1728085482352,1.47988,2414.6,2414.5,0.7089]
[1728085483152,4.3978,2414.6,2414.5,0.7089]
[1728085483357,4.3978,2414.6,2414.5,1.24383866]
[1728085483662,4.3978,2414.6,2414.5,1.24382407]
[1728085483856,4.3978,2414.6,2414.5,0.7089]
[1728085484050,3.2078,2414.6,2414.5,1.24381075]
[1728085484356,3.49764,2415.0,2414.5,9.09297129]
[1728085484554,3.6048,2415.0,2414.9,0.28985]
[1728085484760,3.6048,2415.0,2414.9,0.8246918]
[1728085485453,3.89464,2415.0,2414.9,0.8246918]
[1728085485968,3.89464,2415.0,2414.9,0.8246273]
[1728085486266,3.89464,2415.0,2414.8,0.28985]
[1728085486471,3.89464,2415.0,2414.9,1.1851]
[1728085488769,3.89464,2415.0,2414.9,1.47495]
[1728085489061,0.68684,2415.0,2414.9,1.47495]
[1728085489478,0.68684,2415.0,2414.9,1.1851]
[1728085490674,0.28984,2415.0,2414.9,1.1851]
[1728085490871,1.19,2415.1,2414.9,1.1851]
[1728085491083,1.47983,2415.1,2414.9,1.47494]
[1728085491565,0.28984,2415.0,2414.9,1.1851]
[1728085492264,1.47983,2415.1,2414.9,1.1851]
[1728085493674,0.28984,2415.0,2414.9,1.1851]
[1728085494272,1.19,2415.1,2414.9,1.1851]
[1728085494569,1.47983,2415.1,2414.9,1.1851]
[1728085501372,0.28984,2415.0,2414.9,1.1851]
[1728085502977,1.19,2415.1,2414.9,1.1851]
[1728085503282,1.47983,2415.1,2414.9,1.1851]
[1728085504177,0.28984,2415.0,2414.9,1.1851]
[1728085507484,0.28983,2415.1,2414.9,1.47494]
[1728085507682,0.28984,2415.0,2414.9,1.1851]
[1728085508381,0.28984,2415.0,2414.9,0.4067]
[1728085508587,0.28987,2414.8,2414.6,1.12988]
[1728085511481,1.5987,2414.9,2414.5,0.4048]
[1728085511687,0.28988,2414.6,2414.5,0.4048]
[1728085511887,3.49768,2414.6,2414.5,0.6947]
[1728085512078,3.91588,2414.6,2414.5,5.37054526]
[1728085512387,3.91588,2414.6,2414.5,5.08064526]
[1728085513186,0.70808,2414.6,2414.5,5.08064526]
[1728085514086,0.70808,2414.6,2414.5,4.5464]
[1728085514087,0.4182,2414.6,2414.5,4.5464]
[1728085514287,0.4182,2414.6,2414.5,5.37054271]
[1728085514689,0.70808,2414.6,2414.5,5.08064271]
[1728085514985,0.70808,2414.6,2414.5,5.37054271]
[1728085515191,0.70808,2414.6,2414.5,5.08064271]
[1728085517492,0.70808,2414.6,2414.5,5.08065286]
[1728085518190,0.70808,2414.6,2414.5,0.93905286]
[1728085518985,0.4182,2414.6,2414.5,1.22895286]
[1728085519595,0.70808,2414.6,2414.5,1.22895286]
[1728085520392,1.19,2414.8,2414.6,0.28988]
[1728085520393,1.47986,2414.8,2414.6,0.28988]
[1728085520696,0.4016,2414.9,2414.7,0.7791]
[1728085520884,1.47986,2414.8,2414.7,0.7791]
[1728085521595,1.47986,2414.8,2414.7,1.06897]
[1728085522486,1.47986,2414.8,2414.7,0.7791]
[1728085523295,1.47986,2414.8,2414.7,1.06897]
[1728085524594,1.47986,2414.8,2414.7,1.60344425]
[1728085524792,1.47986,2414.8,2414.7,1.06897]
[1728085524987,1.47986,2414.8,2414.7,1.60343869]
[1728085527294,0.28986,2414.8,2414.7,1.60343869]
[1728085527593,0.28986,2414.8,2414.7,1.06897]
[1728085527792,0.69146,2414.9,2414.7,1.6036163]
[1728085527992,0.28986,2414.8,2414.7,0.3931]
[1728085528195,0.28986,2414.8,2414.7,1.21762664]
[1728085529197,3.49765,2415.0,2414.8,0.28986]
[1728085529403,3.2078,2415.0,2414.9,1.09685]
[1728085529995,0.70163,2415.1,2414.9,1.63163322]
[1728085530195,4.71141,2415.3,2414.9,0.807]
[1728085530196,3.9869,2415.3,2414.9,0.807]
[1728085530400,3.6164,2415.3,2415.2,0.28981]
[1728085530694,0.28982,2415.2,2415.1,0.28982]
[1728085530997,0.28982,2415.2,2415.1,1.21786065]
[1728085531903,3.90621,2415.3,2415.1,1.21786065]
[1728085532102,3.90621,2415.3,2415.2,0.3955]
[1728085532596,5.09621,2415.3,2415.2,0.3955]
[1728085543508,5.09621,2415.3,2415.2,0.7901]
[1728085546305,1.88841,2415.3,2415.2,0.7901]
[1728085546507,5.09621,2415.3,2415.2,0.7901]
[1728085551910,1.88841,2415.3,2415.2,0.7901]
[1728085552311,5.09621,2415.3,2415.2,0.7901]
[1728085560316,3.90621,2415.3,2415.2,0.7901]
[1728085560910,3.2078,2415.3,2415.2,1.07991]
[1728085562421,3.2078,2415.3,2415.2,1.61394457]
[1728085562927,3.2078,2415.3,2415.2,2.80394457]
[1728085564116,3.2078,2415.3,2415.2,2.26991]
[1728085564312,3.2078,2415.3,2415.2,2.80398006]
[1728085564723,3.5918,2415.6,2415.5,0.28978]
[1728085564924,3.2078,2415.6,2415.5,0.28978]
[1728085565423,3.2078,2415.6,2415.5,1.50918]
[1728085566025,3.49756,2415.6,2415.5,1.50918]
[1728085567628,3.49756,2415.6,2415.5,1.2194]
[1728085569134,3.2078,2415.6,2415.5,1.2194]
[1728085569327,3.2078,2415.6,2415.5,1.50918]
[1728085570430,0.384,2415.8,2415.5,6.5494]
[1728085570618,3.701,2415.9,2415.8,0.28974]
[1728085570619,3.49753,2415.9,2415.8,0.28974]
[1728085570930,3.49753,2415.9,2415.5,2.4094]
[1728085570931,0.28973,2415.9,2415.7,0.28975]
[1728085571429,0.28973,2415.9,2415.8,0.3917]
[1728085571929,0.28973,2415.9,2415.8,0.68144]
[1728085572325,0.426,2416.1,2415.8,0.3917]
[1728085572529,0.71571,2416.1,2415.9,1.12883]
[1728085573320,0.71571,2416.1,2415.9,0.8391]
[1728085573520,0.426,2416.1,2416.0,0.28972]
[1728085575332,0.426,2416.1,2415.9,0.8391]
[1728085575531,0.426,2416.1,2415.9,1.12882]
[1728085576634,0.426,2416.1,2416.0,0.28972]
[1728085576832,0.426,2416.1,2415.9,0.8391]
[1728085577025,0.7157,2416.1,2415.9,1.12882]
[1728085577226,0.426,2416.1,2416.0,0.28972]
[1728085577526,0.426,2416.1,2415.9,1.12882]
[1728085578731,0.7157,2416.1,2415.9,1.12882]
[1728085579229,0.426,2416.1,2415.9,1.12882]
[1728085579441,0.426,2416.1,2416.0,1.47972]
[1728085579824,0.7714,2416.3,2416.1,0.28969]
[1728085580134,0.71088,2416.3,2416.2,0.3992]
[1728085598531,0.4212,2416.3,2416.0,1.47971]
[1728085598725,0.2897,2416.2,2416.0,1.89661]
[1728085602249,0.2897,2416.1,2416.0,0.4169]
[1728085602430,0.28972,2416.0,2415.9,0.8391]
[1728085602635,0.71032,2416.0,2415.9,0.8391]
[1728085606539,0.4206,2416.0,2415.9,1.12883]
[1728085610241,0.4206,2416.0,2415.9,1.66273681]
[1728085616244,0.4206,2416.0,2415.9,2.51803753]
[1728085617550,0.4206,2416.0,2415.9,2.51884997]
[1728085617943,0.28971,2416.1,2416.0,0.28972]
[1728085618146,0.28971,2416.1,2416.0,0.82434306]
[1728085618345,0.28971,2416.1,2416.0,1.24764306]
[1728085618647,0.28971,2416.1,2416.0,1.24769425]
[1728085619154,0.28971,2416.1,2416.0,0.95797425]
[1728085620252,4.0116,2416.2,2416.0,0.95797425]
[1728085620455,4.3013,2416.2,2416.1,0.53467425]
[1728085620957,8.4405,2416.2,2416.1,0.53467425]
[1728085621251,4.3013,2416.2,2416.1,0.53467586]
[1728085621459,3.8828,2416.2,2416.1,0.53467586]
[1728085621754,3.5918,2416.5,2416.1,0.53467586]
[1728085621951,3.91246,2416.5,2416.3,0.28967]
[1728085622147,3.91246,2416.5,2416.4,0.28967]
[1728085622351,0.28967,2416.4,2416.3,0.4186]
[1728085624356,4.1384,2416.4,2416.0,1.19]
[1728085624563,0.2897,2416.1,2415.9,1.10502]
[1728085624860,0.415,2416.0,2415.9,1.10502]
[1728085625049,0.415,2416.0,2415.9,3.06987136]
[1728085625453,0.70472,2416.0,2415.9,3.06987136]
[1728085625655,0.415,2416.0,2415.9,3.06987136]
[1728085627555,0.415,2416.0,2415.9,1.10502]
[1728085627760,0.415,2416.0,2415.9,3.0699485]
[1728085629656,0.415,2416.0,2415.9,1.10502]
[1728085629856,0.415,2416.0,2415.9,3.06995823]
[1728085631167,0.415,2416.0,2415.9,3.06996399]
[1728085631464,0.70472,2416.0,2415.9,3.06996399]
[1728085631657,0.415,2416.0,2415.9,2.49529143]
[1728085631856,0.415,2416.0,2415.9,3.06996441]
[1728085632062,0.415,2416.0,2415.9,2.49529143]
[1728085632559,0.415,2416.0,2415.9,1.63973978]
[1728085632761,0.415,2416.0,2415.9,2.49532157]
[1728085632969,0.415,2416.0,2415.9,3.07001069]
[1728085633266,0.415,2416.0,2415.9,2.49533693]
[1728085635256,0.415,2416.0,2415.9,3.0700216]
[1728085636867,0.415,2416.0,2415.9,3.07003725]
[1728085637762,0.415,2416.0,2415.9,2.49533693]
[1728085637966,0.415,2416.0,2415.9,3.07003965]
[1728085639272,0.415,2416.0,2415.9,1.63973978]
[1728085639970,0.415,2416.0,2415.9,2.49537652]
[1728085640165,0.415,2416.0,2415.9,1.63973978]
[1728085640368,0.415,2416.0,2415.9,2.49539372]
[1728085640570,0.28969,2416.2,2416.1,0.2897]
[1728085640771,0.28969,2416.2,2416.1,0.82441978]
[1728085640772,0.70839,2416.2,2416.1,0.82441978]
[1728085641069,0.70839,2416.2,2416.1,0.2897]
[1728085641275,0.70839,2416.2,2416.1,0.82447213]
[1728085641477,3.2078,2416.3,2416.2,0.28969]
[1728085641673,3.2078,2416.3,2416.2,1.2214521]
[1728085641872,3.2078,2416.3,2416.2,2.0297521]
[1728085644581,3.2078,2416.3,2416.2,1.49499]
[1728085644875,3.2078,2416.3,2416.2,2.02972957]
[1728085650585,3.49748,2416.3,2416.2,2.02972957]
[1728085651271,3.49748,2416.3,2416.2,1.49499]
[1728085651475,3.49748,2416.3,2416.2,2.02967711]
[1728085654587,3.49748,2416.3,2416.2,1.49499]
[1728085654795,3.49748,2416.3,2416.2,2.02966908]
[1728085655584,3.2078,2416.3,2416.2,2.02966908]
[1728085656486,0.28968,2416.3,2416.2,2.02966908]
[1728085656884,0.28968,2416.3,2416.2,2.88507918]
[1728085657183,0.28968,2416.3,2416.2,2.02965908]
[1728085657589,0.28968,2416.4,2416.2,2.02965908]
[1728085657789,0.28968,2416.4,2416.3,0.53467908]
[1728085658083,0.28968,2416.4,2416.3,0.82429239]
[1728085661283,1.53903,2416.6,2416.3,0.53461239]
[1728085661284,0.28966,2416.5,2416.3,0.53461239]
[1728085661489,0.28967,2416.5,2416.3,0.28967]
[1728085661687,0.28967,2416.4,2416.3,0.28967]
[1728085661989,0.28967,2416.4,2416.3,0.824185]
[1728085662779,0.8149,2416.6,2416.4,0.28966]
[1728085662780,0.28966,2416.5,2416.4,0.28966]
[1728085663087,0.28966,2416.5,2416.4,0.82414335]
[1728085663381,0.28966,2416.5,2416.4,0.53448335]
[1728085663590,0.392,2416.6,2416.4,0.28966]
[1728085663889,0.392,2416.6,2416.5,0.8499]
[1728085663890,0.68164,2416.6,2416.5,0.8499]
[1728085664288,4.82004,2416.6,2416.5,0.8499]
[1728085664688,0.68164,2416.6,2416.5,0.8499]
[1728085664890,0.68164,2416.6,2416.5,2.0399]
[1728085665288,0.68164,2416.6,2416.5,2.32956]
[1728085665595,3.49744,2416.7,2416.5,2.32956]
[1728085666395,3.2078,2416.7,2416.5,1.13956]
[1728085666598,0.28964,2416.6,2416.5,1.13956]
[1728085666789,0.28964,2416.6,2416.5,2.0399]
[1728085667187,0.70024,2416.6,2416.5,0.4224]
[1728085667500,0.70024,2416.6,2416.3,0.4221]
[1728085667501,0.28967,2416.4,2416.3,0.4221]
[1728085667693,0.28967,2416.4,2416.3,1.3790468]
[1728085667891,0.28967,2416.4,2416.3,0.8448]
[1728085668196,0.28967,2416.4,2416.3,1.37905131]
[1728085668996,0.8093,2416.6,2416.3,1.37905131]
[1728085669196,0.28966,2416.5,2416.3,1.13447]
[1728085672596,0.28966,2416.5,2416.4,0.28967]
[1728085673898,0.8093,2416.6,2416.4,0.28967]
[1728085674100,1.09895,2416.6,2416.4,0.28967]
[1728085677397,0.8093,2416.6,2416.4,0.28967]
[1728085677699,0.28966,2416.5,2416.4,0.28967]
[1728085678104,0.8093,2416.6,2416.4,0.28967]
[1728085678300,1.09895,2416.6,2416.4,0.28967]
[1728085680293,0.28966,2416.5,2416.4,0.28967]
[1728085680497,4.1384,2416.5,2416.3,0.28968]
[1728085680699,0.28967,2416.4,2416.3,0.28968]
[1728085681003,0.28967,2416.4,2416.3,0.82383984]
[1728085681401,0.28967,2416.4,2416.3,0.82382984]
[1728085681907,0.28967,2416.4,2416.3,0.53415984]
[1728085682200,0.28967,2416.4,2416.3,0.28968]
[1728085682396,0.28967,2416.4,2416.3,0.82391078]
[1728085683407,0.28967,2416.4,2416.3,0.82395159]
[1728085684007,0.28967,2416.4,2416.3,0.82395015]
[1728085684201,0.28967,2416.4,2416.3,0.28968]
[1728085684600,0.28967,2416.4,2416.3,0.82399445]
[1728085685205,0.28967,2416.4,2416.2,1.89708]
[1728085685404,0.4094,2416.3,2416.2,1.89708]
[1728085685604,0.4094,2416.3,2416.2,2.43147405]
[1728085686717,4.83748,2416.3,2416.2,0.53439405]
[1728085686908,5.24508,2416.3,2416.1,0.68319]
[1728085687101,0.28969,2416.2,2416.1,0.6832]
[1728085687411,0.28969,2416.2,2416.1,1.2176989]
[1728085687610,0.28969,2416.2,2416.1,1.21773171]
[1728085687907,0.28969,2416.2,2416.1,0.92803171]
[1728085688209,0.28969,2416.2,2416.1,1.21773171]
[1728085689806,1.10669,2416.3,2416.1,0.6832]
[1728085690111,1.10669,2416.3,2416.1,1.6389889]
[1728085690308,1.10669,2416.3,2416.1,1.1045]
[1728085691415,0.817,2416.3,2416.1,1.1045]
[1728085691714,0.28969,2416.2,2416.1,1.1045]
[1728085691916,0.28969,2416.2,2416.1,1.6389726]
[1728085694630,0.28969,2416.2,2416.1,0.8148]
[1728085694822,0.28969,2416.2,2416.1,1.34923009]
[1728085695019,0.28969,2416.2,2416.1,0.8148]
[1728085696027,0.28969,2416.2,2416.1,1.1045]
[1728085696727,0.28969,2416.2,2416.1,0.8148]
[1728085696925,0.28969,2416.2,2416.1,0.3935]
[1728085697123,0.28973,2415.9,2415.8,0.69303]
[1728085697420,0.28973,2415.9,2415.8,1.6272764]
[1728085697626,0.28972,2416.0,2415.9,0.28973]
[1728085697826,0.28972,2416.0,2415.9,0.8240764]
[1728085698225,0.28971,2416.1,2415.9,0.28973]
[1728085698429,0.28971,2416.1,2415.9,0.82405835]
[1728085698726,0.3992,2416.0,2415.9,0.28973]
[1728085698921,0.3992,2416.0,2415.9,0.82399617]
[1728085700726,0.3992,2416.0,2415.9,2.01399617]
[1728085700926,0.2897,2416.2,2416.0,0.28971]
[1728085701129,0.2897,2416.2,2416.1,0.7977]
[1728085701324,0.2897,2416.2,2416.1,1.2124]
[1728085701526,4.4289,2416.2,2416.1,1.2124]
[1728085701726,0.2897,2416.2,2416.1,1.2124]
[1728085708435,0.2897,2416.2,2416.1,0.3954]
[1728085708730,0.28973,2415.9,2415.8,1.09404]
[1728085709033,0.28973,2415.9,2415.8,1.62799962]
[1728085713334,0.28973,2415.9,2415.8,1.33825962]
[1728085713527,0.28973,2415.9,2415.8,0.8043]
[1728085714740,11.75555,2415.9,2415.4,7.95436344]
[1728085714930,1.47978,2415.5,2415.4,7.95436344]
[1728085723949,1.47978,2415.5,2415.3,0.8264]
[1728085726852,0.28979,2415.4,2415.3,0.8264]
[1728085727652,4.68759,2415.4,2415.3,0.8264]
[1728085734251,1.47979,2415.4,2415.3,0.8264]
[1728085734456,4.68759,2415.4,2415.3,0.8264]
[1728085738058,1.47979,2415.4,2415.3,0.8264]
[1728085738255,4.68759,2415.4,2415.3,0.8264]
[1728085740062,1.47979,2415.4,2415.3,0.8264]
[1728085740266,4.68759,2415.4,2415.3,0.8264]
[1728085746454,3.49759,2415.4,2415.3,0.8264]
[1728085751358,4.68759,2415.4,2415.3,0.8264]
[1728085758273,4.68759,2415.4,2415.3,0.4223]
[1728085761263,4.68759,2415.4,2415.3,0.845]
[1728085761469,4.68759,2415.4,2415.3,1.38009764]
[1728085761667,4.68759,2415.4,2415.3,0.845]
[1728085766682,4.68759,2415.4,2415.3,1.38012437]
[1728085767177,4.68759,2415.4,2415.3,0.845]
[1728085767577,4.68759,2415.4,2415.3,1.38012424]
[1728085768373,0.28979,2415.4,2415.3,1.38012424]
[1728085768581,5.10790642,2415.6,2415.3,1.38012424]
[1728085768784,0.28978,2415.5,2415.3,0.845]
[1728085768985,0.28978,2415.5,2415.3,1.1348]
[1728085769285,0.28979,2415.4,2415.3,0.845]
[1728085769483,0.28979,2415.4,2415.3,1.38011567]
[1728085772175,0.72442,2415.6,2415.3,1.66991567]
[1728085772385,0.28978,2415.5,2415.4,0.82490567]
[1728085772689,0.28977,2415.6,2415.5,0.28978]
[1728085772895,3.2078,2415.7,2415.5,0.53511567]
[1728085773190,0.28976,2415.7,2415.6,5.08974772]
[1728085773786,0.28975,2415.7,2415.6,5.37950772]
[1728085773987,0.384,2415.9,2415.6,5.08974772]
[1728085774184,1.19,2416.0,2415.7,0.53504772]
[1728085774390,15.63297366,2416.1,2415.9,1.47972]
[1728085774686,15.63297366,2416.1,2416.0,0.417]
[1728085774887,15.63297366,2416.1,2416.0,0.95163291]
[1728085775279,15.63297366,2416.1,2416.0,0.417]
[1728085776994,15.63297366,2416.1,2416.0,4.5562]
[1728085777893,15.63297366,2416.1,2416.0,0.417]
[1728085778293,15.34326366,2416.1,2416.0,4.5562]
[1728085778885,3.2078,2416.1,2416.0,4.84592]
[1728085779491,8.537,2416.1,2415.4,1.08696659]
[1728085779684,0.28978,2415.5,2415.3,0.68039]
[1728085779886,0.28978,2415.5,2415.3,0.3906]
[1728085779887,0.28979,2415.4,2415.3,0.3906]
[1728085780096,0.28979,2415.4,2415.3,4.5306]
[1728085780689,0.28978,2415.5,2415.4,0.28978]
[1728085780991,0.28979,2415.4,2415.3,0.68039]
[1728085781199,0.28979,2415.4,2415.3,4.82039]
[1728085782698,0.28978,2415.5,2415.3,4.82039]
[1728085782896,0.28978,2415.5,2415.3,0.68039]
[1728085784195,0.28978,2415.5,2415.4,0.421]
[1728085788211,1.5823,2415.6,2415.4,0.421]
[1728085788418,1.87207,2415.6,2415.4,0.421]
[1728085789412,1.87207,2415.6,2415.4,0.71079]
[1728085790217,1.5823,2415.6,2415.4,0.421]
[1728085790517,0.28978,2415.5,2415.4,0.421]
[1728085790920,1.47978,2415.5,2415.4,0.421]
[1728085791710,1.47978,2415.5,2415.4,0.71079]
[1728085791917,1.19,2415.5,2415.4,0.71079]
[1728085792615,1.19,2415.5,2415.4,1.13679]
[1728085796719,4.31617,2415.8,2415.5,0.28977]
[1728085796720,0.28976,2415.7,2415.5,0.28977]
[1728085797120,4.8045,2415.8,2415.4,0.847]
[1728085797422,0.28977,2415.6,2415.4,1.13678]
[1728085797727,0.28977,2415.6,2415.4,0.847]
[1728085798023,0.28977,2415.6,2415.5,0.28978]
[1728085798316,0.28977,2415.6,2415.4,1.13678]
[1728085799123,0.28977,2415.6,2415.4,5.27678]
[1728085799519,0.28977,2415.6,2415.4,1.13678]
[1728085800121,0.28977,2415.6,2415.4,4.987]
[1728085800428,0.28977,2415.6,2415.4,5.27678]
[1728085802130,0.28977,2415.6,2415.4,1.13678]
[1728085810222,0.28977,2415.6,2415.4,0.847]
[1728085810429,3.2078,2415.7,2415.4,0.847]
[1728085810729,0.28973,2415.9,2415.5,0.5339526]
[1728085811028,3.5938,2416.0,2415.8,0.28974]
[1728085811223,3.5938,2416.0,2415.6,0.5339526]
[1728085811224,0.28971,2416.1,2415.9,1.48963]
[1728085811421,0.28971,2416.1,2416.0,0.28972]
[1728085811834,0.28971,2416.1,2415.9,1.48962]
[1728085813435,1.47971,2416.1,2415.9,1.48962]
[1728085816229,0.28972,2416.0,2415.9,1.48962]
[1728085817133,1.576,2416.2,2415.9,1.1999]
[1728085817336,1.4797,2416.2,2416.1,0.2897]
[1728085818534,3.49749,2416.3,2416.2,0.28969]
[1728085818935,3.49749,2416.3,2415.9,2.3899]
[1728085819141,3.2078,2416.3,2416.2,0.28969]
[1728085819532,3.49748,2416.3,2416.2,0.28969]
[1728085820336,3.49748,2416.3,2416.2,4.1384]
[1728085820636,3.49748,2416.3,2416.2,5.61809]
[1728085820637,3.2078,2416.3,2416.2,5.61809]
[1728085821235,0.4026,2416.5,2416.2,5.3284]
[1728085821442,0.28966,2416.5,2416.3,0.71107]